bitfinex/quotes_BTCUSD_20250714
["timestamp","ask_amount","ask_price","bid_price","bid_amount"]
[1752489297130,0.0301511,121890.0,121880.0,0.67754826]
[1752489297346,5.11e-05,121890.0,121880.0,0.85905332]
[1752489297643,5.11e-05,121890.0,121880.0,1.00425173]
[1752489297834,5.11e-05,121890.0,121880.0,0.68124432]
[1752489298098,5.11e-05,121890.0,121880.0,0.87541618]
[1752489298326,5.11e-05,121890.0,121880.0,0.86821173]
[1752489298559,5.11e-05,121890.0,121880.0,1.01341618]
[1752489299270,5.11e-05,121890.0,121880.0,0.66579522]
[1752489299496,5.11e-05,121890.0,121880.0,0.9888027]
[1752489299934,5.11e-05,121890.0,121880.0,0.66579529]
[1752489300158,5.11e-05,121890.0,121880.0,0.9888027]
[1752489300387,5.11e-05,121890.0,121880.0,0.68770694]
[1752489300615,5.11e-05,121890.0,121880.0,0.82454694]
[1752489301292,5.11e-05,121890.0,121880.0,0.50974425]
[1752489301519,5.11e-05,121890.0,121880.0,0.83275166]
[1752489301948,5.11e-05,121890.0,121880.0,0.85753116]
[1752489302620,5.11e-05,121890.0,121880.0,0.53452375]
[1752489302851,5.11e-05,121890.0,121880.0,0.51811424]
[1752489303080,5.11e-05,121890.0,121880.0,0.85753116]
[1752489303309,5.11e-05,121890.0,121880.0,0.84932644]
[1752489303533,5.11e-05,121890.0,121880.0,0.84112165]
[1752489304051,0.0312511,121890.0,121880.0,0.84112165]
[1752489305573,0.0312511,121890.0,121880.0,0.51811424]
[1752489305793,0.0312511,121890.0,121880.0,0.84932644]
[1752489306012,0.0312511,121890.0,121880.0,0.84112165]
[1752489306230,0.0312511,121890.0,121880.0,0.70428165]
[1752489306457,0.0312511,121890.0,121880.0,0.84092165]
[1752489308707,0.0312511,121890.0,121880.0,0.84912644]
[1752489308909,0.0312511,121890.0,121880.0,0.84092165]
[1752489309794,0.0312511,121890.0,121880.0,0.84912644]
[1752489310508,0.0312511,121890.0,121880.0,0.84092165]
[1752489311583,0.0312511,121890.0,121880.0,0.84912644]
[1752489311753,0.0312511,121890.0,121880.0,0.84092165]
[1752489312557,0.0312511,121890.0,121880.0,0.51791424]
[1752489312759,0.0312511,121890.0,121880.0,0.51731424]
[1752489312982,0.0621511,121890.0,121880.0,0.84032165]
[1752489313375,0.0621511,121890.0,121880.0,0.51731424]
[1752489313587,0.0621511,121890.0,121880.0,0.84032165]
[1752489313957,0.0621511,121890.0,121880.0,0.84852644]
[1752489314946,0.0621511,121890.0,121880.0,0.51731424]
[1752489315162,0.0621511,121890.0,121880.0,0.84852644]
[1752489315592,0.0621511,121890.0,121880.0,0.84032165]
[1752489315821,0.0621511,121890.0,121880.0,0.51731424]
[1752489316051,0.0621511,121890.0,121880.0,0.84032165]
[1752489317626,0.0621511,121890.0,121880.0,0.38127424]
[1752489317846,0.07035474,121890.0,121880.0,0.04132035]
[1752489318120,0.62278643,121890.0,121880.0,0.002]
[1752489318574,0.62278643,121890.0,121880.0,0.01554085]
[1752489318790,1.02278643,121890.0,121880.0,0.01654085]
[1752489319224,0.62278643,121890.0,121880.0,0.01454085]
[1752489319453,0.62378643,121890.0,121880.0,0.01454085]
[1752489320758,0.62478643,121890.0,121880.0,0.01454085]
[1752489323976,0.0303,121860.0,121850.0,0.70081623]
[1752489324186,0.0303,121860.0,121850.0,0.77410066]
[1752489324412,0.0303,121860.0,121850.0,1.10531467]
[1752489324625,0.13782008,121870.0,121860.0,0.01454085]
[1752489325610,0.12961489,121870.0,121860.0,0.01454085]
[1752489326026,0.13782015,121870.0,121860.0,0.33754826]
[1752489326372,0.14602547,121870.0,121860.0,0.01454085]
[1752489326588,0.14602534,121870.0,121860.0,0.01454085]
[1752489326798,0.13782008,121870.0,121860.0,0.01659238]
[1752489327009,0.13782008,121870.0,121860.0,0.15207238]
[1752489328072,0.13782008,121870.0,121860.0,0.15407238]
[1752489328502,0.12961483,121870.0,121860.0,0.15407238]
[1752489328741,0.13782002,121870.0,121860.0,0.15407238]
[1752489329385,0.12961483,121870.0,121860.0,0.15407238]
[1752489329988,0.065,121870.0,121860.0,0.51392862]
[1752489330205,0.0321,121870.0,121860.0,0.66364902]
[1752489330419,0.0321,121870.0,121860.0,0.64723709]
[1752489330633,0.0321,121870.0,121860.0,0.33954826]
[1752489330846,0.0321,121870.0,121860.0,0.48299439]
[1752489331200,0.0321,121870.0,121860.0,0.15998698]
[1752489331404,0.0321,121870.0,121860.0,0.47478826]
[1752489331611,0.0321,121870.0,121860.0,0.47462826]
[1752489331837,0.0628,121870.0,121860.0,0.47462826]
[1752489333492,0.0628,121870.0,121860.0,0.63875102]
[1752489333694,0.0628,121870.0,121860.0,0.51187715]
[1752489333898,0.0628,121870.0,121860.0,0.65508322]
[1752489334325,0.0628,121870.0,121860.0,0.64687715]
[1752489334528,0.08903754,121880.0,121870.0,0.16410929]
[1752489334744,0.08903754,121880.0,121870.0,0.30731462]
[1752489334954,0.0719,121880.0,121870.0,0.63032203]
[1752489335148,0.0719,121880.0,121870.0,0.63852722]
[1752489335366,0.0719,121880.0,121870.0,0.64673268]
[1752489335570,0.08903754,121880.0,121870.0,0.63852742]
[1752489335778,0.001,121880.0,121870.0,0.53547845]
[1752489336017,0.001,121880.0,121870.0,1.15192556]
[1752489336231,0.001,121880.0,121870.0,1.01692556]
[1752489336449,0.001,121880.0,121870.0,1.15192556]
[1752489336883,0.001,121880.0,121870.0,0.66381815]
[1752489337107,0.001,121880.0,121870.0,0.98682556]
[1752489337332,0.001,121880.0,121870.0,1.12182556]
[1752489340013,0.001,121880.0,121870.0,0.98682556]
[1752489340434,0.001,121880.0,121870.0,0.79881815]
[1752489340644,0.001,121880.0,121870.0,1.09182556]
[1752489342767,0.001,121880.0,121870.0,1.12182556]
[1752489342999,0.001,121880.0,121870.0,1.39983297]
[1752489343218,0.001,121880.0,121870.0,1.59071758]
[1752489343479,0.001,121880.0,121870.0,1.72571758]
[1752489343703,0.001,121880.0,121870.0,1.40271017]
[1752489343919,5.11e-05,121890.0,121870.0,1.40271017]
[1752489344151,5.11e-05,121890.0,121880.0,0.72050476]
[1752489344584,5.11e-05,121890.0,121880.0,0.53249735]
[1752489344798,5.11e-05,121890.0,121880.0,0.85550476]
[1752489345228,5.11e-05,121890.0,121880.0,0.53249735]
[1752489345436,5.11e-05,121890.0,121880.0,0.85550476]
[1752489346504,5.11e-05,121890.0,121880.0,0.53249735]
[1752489346717,5.11e-05,121890.0,121880.0,0.91138937]
[1752489346935,5.11e-05,121890.0,121880.0,0.87968937]
[1752489347155,5.11e-05,121890.0,121880.0,0.80248937]
[1752489347375,5.11e-05,121890.0,121880.0,0.86768937]
[1752489347587,5.11e-05,121890.0,121880.0,1.00264937]
[1752489347800,5.11e-05,121890.0,121880.0,0.86768937]
[1752489348014,5.11e-05,121890.0,121880.0,1.00264937]
[1752489348507,5.11e-05,121890.0,121880.0,1.0298263]
[1752489348746,5.11e-05,121890.0,121880.0,1.35283371]
[1752489348959,5.11e-05,121890.0,121880.0,1.0298263]
[1752489349179,5.11e-05,121890.0,121880.0,0.83894169]
[1752489350845,5.11e-05,121890.0,121880.0,0.88814169]
[1752489352410,5.11e-05,121890.0,121880.0,0.85604169]
[1752489357330,5.11e-05,121890.0,121880.0,0.82294169]
[1752489358211,5.11e-05,121890.0,121880.0,0.49993428]
[1752489358731,5.11e-05,121890.0,121880.0,0.82294169]
[1752489359194,1.0000511,121890.0,121880.0,0.82294169]
[1752489360216,1.0000511,121890.0,121880.0,1.0687891]
[1752489360685,1.0000511,121890.0,121880.0,1.2036691]
[1752489361550,1.0291511,121890.0,121880.0,0.17626489]
[1752489361764,1.0291511,121890.0,121880.0,0.82286169]
[1752489361765,1.0621511,121890.0,121880.0,0.82286169]
[1752489362409,1.0619111,121890.0,121880.0,0.82286169]
[1752489362856,1.0289111,121890.0,121880.0,0.82286169]
[1752489363081,0.9998111,121890.0,121880.0,0.82286169]
[1752489363525,0.9998111,121890.0,121880.0,1.0426891]
[1752489363792,0.9998111,121890.0,121880.0,1.23357371]
[1752489364021,0.9998111,121890.0,121880.0,1.39455371]
[1752489365168,0.9998111,121890.0,121880.0,1.70761386]
[1752489365399,0.9998111,121890.0,121880.0,1.86703986]
[1752489365651,0.9998111,121890.0,121880.0,1.80196217]
[1752489366147,0.9998111,121890.0,121880.0,1.61107756]
[1752489366382,0.9998111,121890.0,121880.0,1.57649156]
[1752489367284,0.9998111,121890.0,121880.0,1.5436291]
[1752489367520,0.9998111,121890.0,121880.0,1.57649156]
[1752489368616,0.9998111,121890.0,121880.0,1.45165156]
[1752489368855,0.9998111,121890.0,121880.0,1.5536291]
[1752489369079,0.9998111,121890.0,121880.0,1.45165156]
[1752489369292,0.9998111,121890.0,121880.0,0.94047674]
[1752489369507,0.98894039,121890.0,121880.0,1.58649156]
[1752489369975,0.98894039,121890.0,121880.0,1.60548911]
[1752489370445,0.97283518,121890.0,121880.0,1.82139081]
[1752489370948,0.97283518,121890.0,121880.0,1.80239326]
[1752489371510,0.97283518,121890.0,121880.0,1.7695308]
[1752489371754,0.97283518,121890.0,121880.0,1.80239326]
[1752489372430,0.97283518,121890.0,121880.0,1.7695308]
[1752489372650,0.97283518,121890.0,121880.0,1.80239326]
[1752489373318,0.97283518,121890.0,121880.0,1.15637844]
[1752489373548,0.97283518,121890.0,121880.0,1.80239326]
[1752489374143,0.97283518,121890.0,121880.0,1.77621326]
[1752489374429,0.97283518,121890.0,121880.0,1.45320585]
[1752489374678,0.97283518,121890.0,121880.0,1.77621326]
[1752489374919,0.97283518,121890.0,121880.0,1.31844585]
[1752489375202,0.97283518,121890.0,121880.0,1.60975326]
[1752489375482,0.97283518,121890.0,121880.0,1.74451326]
[1752489375792,0.97283518,121890.0,121880.0,1.7408508]
[1752489376000,0.97283518,121890.0,121880.0,1.75061326]
[1752489376994,0.97283518,121890.0,121880.0,1.7177508]
[1752489377483,0.97283518,121890.0,121880.0,1.75061326]
[1752489377732,0.97283518,121890.0,121880.0,1.61585326]
[1752489377979,0.91195721,121890.0,121880.0,2.07362067]
[1752489378282,0.13641517,121890.0,121880.0,2.14765873]
[1752489378536,0.09724166,121910.0,121900.0,0.68968172]
[1752489378789,0.06036369,121910.0,121900.0,1.68652365]
[1752489379274,0.05216859,121910.0,121900.0,1.7301012]
[1752489379509,0.05216859,121910.0,121900.0,1.75493926]
[1752489379726,0.04397349,121910.0,121900.0,1.75493926]
[1752489379942,0.03577839,121910.0,121900.0,1.75893926]
[1752489380398,0.02758329,121910.0,121900.0,1.75893926]
[1752489380846,0.01758819,121910.0,121900.0,1.75893926]
[1752489381068,0.0293,121950.0,121940.0,0.54315737]
[1752489381290,0.02945336,121950.0,121940.0,1.21695189]
[1752489381705,0.06005336,121950.0,121940.0,1.21695189]
[1752489383358,0.06005336,121950.0,121940.0,1.21695196]
[1752489383579,0.06005336,121950.0,121940.0,1.22515224]
[1752489383800,0.06205336,121950.0,121940.0,1.02833537]
[1752489384026,0.06205336,121950.0,121940.0,0.88574433]
[1752489384268,0.06205336,121950.0,121940.0,1.21695222]
[1752489384494,0.06205336,121950.0,121940.0,1.21695229]
[1752489384730,0.06705336,121950.0,121940.0,1.20875174]
[1752489384952,0.06705336,121950.0,121940.0,1.21695229]
[1752489385179,0.06705336,121950.0,121940.0,1.23335305]
[1752489385404,0.06705336,121950.0,121940.0,1.2251527]
[1752489385855,0.06705336,121950.0,121940.0,1.22515277]
[1752489386070,0.06705336,121950.0,121940.0,1.23335278]
[1752489386296,0.06705336,121950.0,121940.0,1.24297639]
[1752489386520,0.03815336,121950.0,121940.0,1.24297639]
[1752489388992,0.06805336,121950.0,121940.0,0.91996898]
[1752489389227,0.06805336,121950.0,121940.0,1.24297639]
[1752489389460,0.00755336,121950.0,121940.0,0.91996898]
[1752489389687,0.00755336,121950.0,121940.0,1.6805838]
[1752489389906,0.00755336,121950.0,121940.0,1.35757639]
[1752489390149,0.00555336,121950.0,121940.0,1.39043885]
[1752489390605,0.00555336,121950.0,121940.0,1.36473885]
[1752489390835,0.00555336,121950.0,121940.0,1.31553885]
[1752489391103,0.00555336,121950.0,121940.0,1.31753885]
[1752489391320,0.00055336,121950.0,121940.0,1.34123885]
[1752489391551,0.00055336,121950.0,121940.0,1.31437639]
[1752489391779,0.00055336,121950.0,121940.0,1.34723885]
[1752489392010,0.00055336,121950.0,121940.0,1.53855555]
[1752489392236,0.00055336,121950.0,121940.0,1.51285555]
[1752489392457,0.00055336,121950.0,121940.0,1.47999309]
[1752489392676,0.00055336,121950.0,121940.0,1.48315555]
[1752489393397,0.00055336,121950.0,121940.0,1.32233885]
[1752489395234,0.0004,121980.0,121940.0,1.32233885]
[1752489395235,1.17338522,122000.0,121960.0,0.17218699]
[1752489395466,0.01639384,121990.0,121980.0,0.33754826]
[1752489395692,0.00819685,121990.0,121980.0,0.60670826]
[1752489396148,1.0263543,122000.0,121980.0,0.60670826]
[1752489396373,1.0263543,122000.0,121990.0,0.3395976]
[1752489396374,1.00910758,122000.0,121990.0,0.3395976]
[1752489396598,1.01730396,122000.0,121990.0,0.01454085]
[1752489396832,1.0508348,122000.0,121990.0,0.01454085]
[1752489397066,1.01730396,122000.0,121990.0,0.01454085]
[1752489397291,1.02550047,122000.0,121990.0,0.03858857]
[1752489397514,1.03369712,122000.0,121990.0,0.01454085]
[1752489398155,1.05360047,122000.0,121990.0,0.01454085]
[1752489398371,1.09169712,122000.0,121990.0,0.01454085]
[1752489398593,1.10883466,122000.0,121990.0,0.01454085]
[1752489398872,1.27276908,122000.0,121990.0,0.01454085]
[1752489399101,1.09569712,122000.0,121990.0,0.01454085]
[1752489399320,1.09569705,122000.0,121990.0,0.01454085]
[1752489399583,1.08750047,122000.0,121990.0,0.01454085]
[1752489400018,1.08950047,122000.0,121990.0,0.01454085]
[1752489400240,1.09769712,122000.0,121990.0,0.01454085]
[1752489400469,1.26857317,122000.0,121990.0,0.01454085]
[1752489401612,1.25143563,122000.0,121990.0,0.01454085]
[1752489401841,1.26857317,122000.0,121990.0,0.03902922]
[1752489402093,1.26857317,122000.0,121990.0,0.01454085]
[1752489402554,1.26457317,122000.0,121990.0,0.01454085]
[1752489402779,1.24843563,122000.0,121990.0,0.01454085]
[1752489402998,1.26557317,122000.0,121990.0,0.01454085]
[1752489403195,1.08450087,122000.0,121980.0,0.35050711]
[1752489403430,0.562103,121990.0,121980.0,0.26916]
[1752489403666,0.06609699,121990.0,121970.0,0.34433073]
[1752489403922,0.19833391,121990.0,121980.0,0.02748542]
[1752489404161,0.19015013,121980.0,121970.0,0.02132332]
[1752489404403,0.92614465,121980.0,121970.0,0.02132332]
[1752489404628,0.18945463,121950.0,121940.0,5e-05]
[1752489404855,0.56566237,121950.0,121940.0,5e-05]
[1752489405086,0.58279991,121950.0,121940.0,5e-05]
[1752489405794,0.58179991,121950.0,121940.0,5e-05]
[1752489406491,0.66414702,121950.0,121940.0,5e-05]
[1752489407141,0.66314702,121950.0,121940.0,5e-05]
[1752489407580,0.66714702,121950.0,121940.0,5e-05]
[1752489408229,0.2627925,121950.0,121940.0,5e-05]
[1752489409085,0.2647925,121950.0,121940.0,5e-05]
[1752489411689,0.0674,121950.0,121940.0,0.40267595]
[1752489411903,0.0331,121950.0,121940.0,0.53735595]
[1752489412169,0.01119954,121950.0,121940.0,0.53735595]
[1752489412424,0.001,121950.0,121940.0,0.53739595]
[1752489412859,0.004,121950.0,121940.0,0.53739595]
[1752489413275,0.02039914,121950.0,121940.0,0.53739595]
[1752489413504,0.03753668,121950.0,121940.0,0.53739595]
[1752489413745,0.02039914,121950.0,121940.0,0.53739595]
[1752489413966,0.02859888,121950.0,121940.0,0.53739595]
[1752489414182,0.004,121950.0,121940.0,0.87739595]
[1752489414671,0.004,121950.0,121940.0,0.7508767]
[1752489414896,0.004,121950.0,121940.0,0.34005]
[1752489414897,0.25625443,121950.0,121940.0,0.34005]
[1752489415115,0.25525443,121950.0,121940.0,0.34005]
[1752489415332,0.25525443,121950.0,121940.0,0.47465]
[1752489415697,0.09125279,121950.0,121940.0,0.34005]
[1752489415924,0.09125279,121950.0,121940.0,0.66520685]
[1752489416119,0.07485297,121950.0,121940.0,0.66520685]
[1752489416322,0.08219935,121950.0,121940.0,0.66520685]
[1752489416534,0.09139895,121950.0,121940.0,0.66520685]
[1752489416727,0.08319914,121950.0,121940.0,0.66520685]
[1752489416937,0.02039914,121950.0,121940.0,0.66520685]
[1752489417194,0.03679882,121950.0,121940.0,0.66520685]
[1752489417383,0.03679876,121950.0,121940.0,0.66520685]
[1752489417611,0.004,121950.0,121940.0,1.08286921]
[1752489417840,0.004,121950.0,121940.0,0.76790037]
[1752489418079,0.004,121950.0,121940.0,1.10561061]
[1752489418314,0.004,121950.0,121940.0,0.81500044]
[1752489418547,0.004,121950.0,121940.0,0.66955969]
[1752489418791,0.004,121950.0,121940.0,0.46671969]
[1752489419009,0.001,121950.0,121940.0,0.47492044]
[1752489419225,0.001,121950.0,121940.0,0.49132173]
[1752489419433,0.001,121950.0,121940.0,0.48312112]
[1752489419653,0.0254501,121960.0,121940.0,0.32955969]
[1752489419887,0.02545003,121960.0,121950.0,0.31496884]
[1752489420129,0.01725103,121960.0,121940.0,0.42730823]
[1752489420332,0.02544996,121960.0,121950.0,0.137]
[1752489420743,0.00085336,121960.0,121950.0,0.137]
[1752489420956,0.00905223,121960.0,121950.0,0.13696]
[1752489421166,0.01725116,121960.0,121940.0,0.09593796]
[1752489421380,0.02545023,121960.0,121950.0,0.13696]
[1752489421589,0.05815023,121960.0,121950.0,0.13696]
[1752489422000,0.09504937,121960.0,121950.0,0.13704]
[1752489422211,0.09504937,121960.0,121940.0,0.4109068]
[1752489422423,0.09504937,121960.0,121950.0,0.13704]
[1752489422634,0.26723952,121960.0,121940.0,5e-05]
[1752489422844,0.08329896,121950.0,121940.0,5e-05]
[1752489423062,0.23995475,121950.0,121940.0,5e-05]
[1752489423492,0.23995475,121950.0,121940.0,0.13709]
[1752489423971,0.23995475,121950.0,121940.0,5e-05]
[1752489424186,0.23995475,121950.0,121940.0,0.13709]
[1752489424817,0.24095475,121950.0,121940.0,0.13709]
[1752489425288,0.24395475,121950.0,121940.0,0.13709]
[1752489426922,0.24395475,121950.0,121940.0,0.13693]
[1752489427193,0.25215483,121950.0,121940.0,5e-05]
[1752489427406,0.25215483,121950.0,121940.0,0.13693]
[1752489427624,0.24395502,121950.0,121940.0,0.13689]
[1752489429607,0.23575508,121950.0,121940.0,0.13689]
[1752489430704,0.23575508,121950.0,121940.0,0.13661]
[1752489430705,0.24395496,121950.0,121940.0,0.13661]
[1752489431134,0.24395496,121950.0,121940.0,5e-05]
[1752489431415,0.07995332,121950.0,121940.0,0.13661]
[1752489431843,0.24395496,121950.0,121940.0,0.13661]
[1752489432491,0.24395496,121950.0,121940.0,0.13641]
[1752489432912,0.24395496,121950.0,121940.0,5e-05]
[1752489433150,0.24395496,121950.0,121940.0,0.13645]
[1752489434191,0.2610925,121950.0,121940.0,0.13645]
[1752489435031,0.2610925,121950.0,121940.0,5e-05]
[1752489435232,0.2610925,121950.0,121940.0,0.13617]
[1752489437354,0.2610925,121950.0,121940.0,5e-05]
[1752489437355,0.24395496,121950.0,121940.0,5e-05]
[1752489437561,0.2610925,121950.0,121940.0,0.13597]
[1752489439251,0.2610925,121950.0,121940.0,0.32256205]
[1752489439487,0.2692921,121950.0,121940.0,5e-05]
[1752489439720,0.26109263,121950.0,121940.0,0.13577]
[1752489440410,0.26109263,121950.0,121940.0,5e-05]
[1752489440647,0.26109263,121950.0,121940.0,0.13569]
[1752489440880,0.26109263,121950.0,121940.0,5e-05]
[1752489441100,0.66495179,121950.0,121940.0,5e-05]
[1752489441550,0.66495179,121950.0,121940.0,0.13569]
[1752489441771,0.66495179,121950.0,121940.0,5e-05]
[1752489442233,0.34243974,121950.0,121940.0,5e-05]
[1752489442455,0.66495179,121950.0,121940.0,5e-05]
[1752489442709,0.34243974,121950.0,121940.0,5e-05]
[1752489442941,0.26109263,121950.0,121940.0,5e-05]
[1752489443170,0.07175283,121950.0,121940.0,0.32256205]
[1752489443403,0.03019044,121950.0,121940.0,0.32256205]
[1752489443624,0.03019037,121950.0,121940.0,0.32256205]
[1752489443848,0.03838998,121950.0,121940.0,0.45804205]
[1752489444066,0.004,121950.0,121940.0,0.52571942]
[1752489444253,0.004,121950.0,121940.0,0.80644653]
[1752489444506,0.004,121950.0,121940.0,0.67096653]
[1752489444725,0.004,121950.0,121940.0,0.80644653]
[1752489444946,0.003,121950.0,121940.0,0.80644653]
[1752489445164,0.01725109,121960.0,121940.0,0.655106]
[1752489445381,0.001,121950.0,121940.0,0.79878635]
[1752489445601,0.001,121950.0,121940.0,0.67150663]
[1752489445816,0.001,121950.0,121940.0,0.80686663]
[1752489446269,0.08049672,121970.0,121950.0,0.48705323]
[1752489446541,0.08049666,121970.0,121960.0,0.13532]
[1752489446764,0.1140314,121970.0,121960.0,0.13528]
[1752489446986,0.27800614,121970.0,121960.0,0.13528]
[1752489447208,0.10583273,121970.0,121960.0,0.13528]
[1752489447658,0.001,121970.0,121950.0,0.4870533]
[1752489447873,0.001,121970.0,121950.0,0.65689997]
[1752489448099,0.00819813,121970.0,121960.0,0.13516]
[1752489448318,0.0322,121950.0,121940.0,0.01459085]
[1752489448563,0.08089928,121950.0,121940.0,5e-05]
[1752489449003,0.08909922,121950.0,121940.0,0.13521]
[1752489449220,0.08089928,121950.0,121940.0,0.13521]
[1752489449445,0.01713754,121960.0,121940.0,0.14975085]
[1752489449666,0.24687192,121970.0,121950.0,0.4498918]
[1752489449855,0.0081988,121960.0,121950.0,0.13504]
[1752489450111,0.02533634,121960.0,121950.0,0.13504]
[1752489450386,0.03353521,121960.0,121940.0,0.67150515]
[1752489450604,0.0081988,121960.0,121950.0,0.135]
[1752489451721,0.01739773,121960.0,121950.0,0.13705002]
[1752489452234,0.01739767,121960.0,121950.0,0.13705002]
[1752489452735,0.02559674,121960.0,121950.0,0.13705002]
[1752489452953,0.0091988,121960.0,121950.0,0.13705002]
[1752489453212,0.01739767,121960.0,121950.0,0.13705002]
[1752489453421,0.001,121960.0,121950.0,0.1452501]
[1752489453611,0.001,121960.0,121950.0,0.13705002]
[1752489453782,0.001,121960.0,121950.0,0.14525003]
[1752489453987,0.0091988,121960.0,121950.0,0.13705002]
[1752489454217,0.001,121960.0,121950.0,0.40308968]
[1752489454429,0.001,121960.0,121950.0,0.7343413]
[1752489455083,0.001,121960.0,121950.0,0.73434143]
[1752489455298,0.001,121960.0,121950.0,0.74254131]
[1752489455534,0.001,121960.0,121950.0,0.41128969]
[1752489456259,0.001,121960.0,121950.0,0.41948963]
[1752489456468,0.001,121960.0,121950.0,0.73434143]
[1752489456700,0.001,121960.0,121950.0,0.67914098]
[1752489456912,0.001,121960.0,121950.0,0.81390078]
[1752489457676,0.001,121960.0,121950.0,0.67914044]
[1752489457920,0.001,121960.0,121950.0,0.81390011]
[1752489458132,0.001,121960.0,121950.0,0.8057005]
[1752489458344,0.03279318,121970.0,121950.0,0.78930109]
[1752489458557,0.04173226,121970.0,121950.0,0.78930136]
[1752489459004,0.03279318,121970.0,121950.0,0.79750117]
[1752489459248,0.04993072,121970.0,121960.0,0.00204985]
[1752489459477,0.04173226,121970.0,121960.0,0.00204985]
[1752489459700,0.03279318,121970.0,121960.0,0.00204985]
[1752489459922,0.05093072,121970.0,121960.0,0.00204985]
[1752489460377,0.04199178,121970.0,121950.0,0.65454142]
[1752489460602,0.05093119,121970.0,121960.0,0.13476]
[1752489460818,0.05093112,121970.0,121960.0,0.13476]
[1752489461470,0.05293112,121970.0,121950.0,0.41893984]
[1752489461739,0.04399218,121970.0,121960.0,0.13476]
[1752489461967,0.06112972,121970.0,121960.0,0.13476]
[1752489462191,0.05293112,121970.0,121960.0,0.13476]
[1752489462419,0.06113013,121970.0,121960.0,0.13476]
[1752489462641,0.04473286,121970.0,121960.0,0.13476]
[1752489463084,0.003,121970.0,121960.0,0.13476]
[1752489463300,0.003,121970.0,121960.0,0.50362996]
[1752489463515,0.002,121970.0,121960.0,0.66724011]
[1752489463731,0.002,121970.0,121960.0,0.79508542]
[1752489463945,0.002,121970.0,121960.0,0.80328435]
[1752489464166,0.01639511,121980.0,121960.0,0.80328435]
[1752489464399,0.03353265,121980.0,121960.0,0.79508542]
[1752489464621,0.03353265,121980.0,121970.0,0.00204968]
[1752489464841,0.25033953,121990.0,121970.0,0.00204968]
[1752489465053,0.00819752,121980.0,121970.0,0.13676968]
[1752489465742,0.01639512,121980.0,121970.0,0.13676968]
[1752489465962,0.03353266,121980.0,121970.0,0.13676968]
[1752489466178,0.01019746,121980.0,121970.0,0.13472]
[1752489466392,0.03553259,121980.0,121970.0,0.13676968]
[1752489467031,0.04373031,121980.0,121970.0,0.13472]
[1752489467445,0.03553259,121980.0,121970.0,0.45703617]
[1752489467866,0.04373025,121980.0,121970.0,0.45703617]
[1752489468015,0.02659271,121980.0,121970.0,0.45703617]
[1752489468232,0.04373025,121980.0,121970.0,0.45703617]
[1752489468641,0.05192804,121980.0,121970.0,0.45703617]
[1752489468837,0.04373025,121980.0,121970.0,0.45703617]
[1752489469041,0.05192804,121980.0,121970.0,0.45703617]
[1752489469611,0.06012597,121980.0,121970.0,0.13472]
[1752489469858,0.05192804,121980.0,121970.0,0.13472]
[1752489470077,0.05192804,121980.0,121970.0,0.45703617]
[1752489470442,0.04373025,121980.0,121970.0,0.45703617]
[1752489470755,0.03353259,121980.0,121970.0,0.45703617]
[1752489470942,0.04173031,121980.0,121970.0,0.45703617]
[1752489471549,0.01639505,121980.0,121960.0,0.34547336]
[1752489471747,0.04173025,121980.0,121970.0,0.45908585]
[1752489471954,0.24265349,121990.0,121970.0,0.53838328]
[1752489472153,0.025335,121980.0,121970.0,0.55292413]
[1752489472476,0.01639505,121980.0,121970.0,0.55292413]
[1752489472672,0.03353259,121980.0,121970.0,0.55292413]
[1752489472882,0.04173038,121980.0,121970.0,0.09588796]
[1752489473230,0.01639505,121980.0,121970.0,0.55288413]
[1752489473441,0.04173025,121980.0,121970.0,0.41820413]
[1752489473653,0.04173025,121980.0,121970.0,0.55288413]
[1752489473870,0.04992797,121980.0,121970.0,0.55288413]
[1752489474090,0.05812583,121980.0,121970.0,0.55288413]
[1752489474300,0.05812636,121980.0,121970.0,0.55288413]
[1752489474515,0.00819746,121980.0,121970.0,0.66297587]
[1752489474726,0.01639498,121980.0,121970.0,0.797656]
[1752489474939,0.02459257,121980.0,121970.0,0.797656]
[1752489475153,0.00819746,121980.0,121970.0,0.81405286]
[1752489475391,0.18905211,121990.0,121970.0,0.82225119]
[1752489475632,0.008708,121990.0,121980.0,0.48537747]
[1752489475888,0.0251019,121990.0,121980.0,0.45609617]
[1752489476102,0.03329915,121990.0,121980.0,0.45609617]
[1752489476535,0.04149654,121990.0,121980.0,0.45609617]
[1752489477294,0.19724762,121990.0,121980.0,0.45609617]
[1752489477496,0.01790512,121990.0,121980.0,0.45609617]
[1752489477698,0.01790512,121990.0,121980.0,0.33595702]
[1752489477909,0.01790512,121990.0,121980.0,0.01454085]
[1752489477910,0.02810211,121990.0,121980.0,0.01454085]
[1752489478125,0.02810211,121990.0,121980.0,0.14922085]
[1752489478335,0.02810211,121990.0,121980.0,0.47358653]
[1752489478533,0.01990492,121990.0,121980.0,0.64369638]
[1752489478762,0.02810204,121990.0,121980.0,0.48497508]
[1752489478964,0.02810204,121990.0,121980.0,0.50673471]
[1752489479164,0.02810204,121990.0,121980.0,0.17622048]
[1752489479365,0.01990492,121990.0,121980.0,0.75204299]
[1752489479580,0.01170793,121990.0,121980.0,0.79194085]
[1752489479804,0.01170793,121990.0,121980.0,0.83313864]
[1752489480149,0.01170793,121990.0,121980.0,0.82494085]
[1752489480588,0.01170793,121990.0,121980.0,0.83313864]
[1752489480813,0.01990492,121990.0,121980.0,0.81987299]
[1752489481411,0.02710204,121990.0,121980.0,0.78683305]
[1752489481611,0.03529929,121990.0,121980.0,0.57984376]
[1752489481820,0.01070793,121990.0,121980.0,0.76020085]
[1752489482027,0.01070793,121990.0,121980.0,0.62556085]
[1752489482257,0.01070793,121990.0,121980.0,0.76020085]
[1752489482478,0.00251101,121990.0,121980.0,0.83622864]
[1752489482713,0.00051101,121990.0,121980.0,1.41380869]
[1752489483181,0.00051101,121990.0,121980.0,1.44267662]
[1752489484068,0.00051101,121990.0,121980.0,1.44467662]
[1752489484784,0.00051101,121990.0,121980.0,1.44164675]
[1752489485011,0.00051101,121990.0,121980.0,1.89203085]
[1752489485224,0.00051101,121990.0,121980.0,1.54084675]
[1752489485656,0.00051101,121990.0,121980.0,1.83832486]
[1752489486170,0.00051101,121990.0,121980.0,1.51600869]
[1752489487344,0.00051101,121990.0,121980.0,1.67446738]
[1752489487573,0.00051101,121990.0,121980.0,1.70732984]
[1752489488433,0.00051101,121990.0,121980.0,1.73189584]
[1752489488697,0.00051101,121990.0,121980.0,1.54057469]
[1752489489932,0.00051101,121990.0,121980.0,1.73189584]
[1752489490600,0.00566101,121990.0,121980.0,1.72665584]
[1752489491377,0.00051101,121990.0,121980.0,1.72876584]
[1752489491598,0.00252101,121990.0,121980.0,1.72876584]
[1752489491828,0.00051101,121990.0,121980.0,1.72876584]
[1752489492062,0.00051101,121990.0,121980.0,1.73189584]
[1752489492289,0.00051101,121990.0,121980.0,1.54057469]
[1752489492846,1.0004,122000.0,121990.0,0.64049624]